Cogmind - Beta 15 @@@ ROGUE MODE // 2025.05.20 @ 10:34:34 Player: Epsilon 11 Result: Destroyed by 3N-7W3(R) with Subdweller Machine Gun Performance ------------- Evolutions (0) 0 Regions Visited (2) 400 Robots Destroyed (19) 95 Value Destroyed (413) 413 Prototype IDs (0) 0 Alien Tech Used (0) 0 Bonus (0) 0 TOTAL SCORE: 908 Bonus ------- None Cogmind --------- Core Integrity 0/250 Matter 300/300 Energy 250/250 System Corruption 0% Temperature Cool (67) Movement Walking (400) Ox4 Location -10/Subcaves Parts ------- > --- POWER (1) -------- Ion Engine > --- PROPULSION (2) --- Aluminum Leg Aluminum Leg > --- UTILITY (2) ------ Huge Storage Unit > --- WEAPON (2) ------- Makeshift Laser > --- INVENTORY (25) --- Subdweller Power Source Huge Storage Unit Structural Scanner Visual Processing Unit Transport Network Coupler Authchip [R/Combat] Medium Laser Small Laser Light EM Pulse Cannon Subdweller Machine Gun Rocket Launcher Rocket Launcher Datajack Peak State ------------ > --- POWER ------------ Ion Engine > --- PROPULSION ------- Wheel Compact Wheel > --- UTILITY ---------- Heat Sink Huge Storage Unit > --- WEAPON ----------- Makeshift Laser Light EM Pulse Cannon > --- INVENTORY -------- Ion Engine Aluminum Leg Aluminum Leg Huge Storage Unit Structural Scanner Visual Processing Unit Transport Network Coupler Authchip [R/Combat] Small Laser Rocket Launcher Rocket Launcher Datajack [Rating: 12] Favorites ----------- Power Ion Engine Engine Ion Engine Propulsion Aluminum Leg Leg Aluminum Leg Wheel Compact Wheel Utility Huge Storage Unit Device Heat Sink Storage Huge Storage Unit Weapon Makeshift Laser Energy Gun Makeshift Laser Energy Cannon Light EM Pulse Cannon Launcher Rocket Launcher Build | -11 -10 -10 ------- Run | Yrd Mat Sub Slots Evolved . | . . . Power . | . . . Propulsion . | . . . Utility . | . . . Weapon . | . . . Parts Attached 17 | 6 5 6 Power 2 | 1 . 1 Engine 2 | 1 . 1 Core . | . . . Reactor . | . . . Propulsion 4 | 2 . 2 Treads . | . . . Leg 2 | . . 2 Wheel 2 | 2 . . Hover . | . . . Flight . | . . . Utility 4 | 1 2 1 Device 1 | . 1 . Storage 3 | 1 1 1 Processor . | . . . Hackware . | . . . Protection . | . . . Artifact . | . . . Weapon 7 | 2 3 2 Energy Gun 3 | 2 . 1 Energy Cannon 3 | . 2 1 Ballistic Gun . | . . . Ballistic Cannon . | . . . Launcher 1 | . 1 . Special Weapon . | . . . Impact Weapon . | . . . Slashing Weapon . | . . . Piercing Weapon . | . . . Special Melee Weapon . | . . . Unidentified Prototypes . | . . . Parts Lost 6 | . 1 5 Power 1 | . . 1 Propulsion 2 | . . 2 Utility 1 | . . 1 Weapon 2 | . 1 1 Highest Loss Streak 2 | . 1 2 To Critical Strikes . | . . . Average Backups 11 | 1 9 13 Power . | . 1 . Propulsion 1 | . 2 . Utility 4 | . 2 4 Weapon 4 | . 3 5 Tool/Special . | . . . Unused Backups 8 | . . 8 Power 1 | . . 1 Propulsion . | . . . Utility 4 | . . 4 Weapon 2 | . . 2 Tool/Special 1 | . . 1 Average Slot Usage (%) 90 | . 95 87 Engine 13 | . 13 13 Leg 9 | . . 14 Wheel 14 | . 26 9 Device 7 | . 8 6 Storage 15 | . 18 14 Energy Gun 11 | . 6 14 Energy Cannon 12 | . 19 9 Launcher 3 | . . 4 Peak Build Rating 12 | 6 10 12 Average Rating 10 | 4 8 11 On Entrance 5 | . 6 9 Naked Turns . | . . . Heaviest Build 98 | 13 98 95 Greatest Support 26 | 26 26 26 Greatest Overweight (x) 28 | . 28 5 Average Overweight (x) 3 | . 2 4 Largest Inventory Capacity 25 | 8 25 25 Average Capacity 24 | 7 24 25 Most Carried 14 | 3 13 14 Average Carried 11 | 1 9 13 Final Capacity 25 | 8 25 25 Final Carried 13 | 3 12 13 Class Distribution -------------------- 100% | Mutant Dominant Class ---------------- Mutant | -10/Materials Mutant | -10/Subcaves Resources | -11 -10 -10 ----------- Run | Yrd Mat Sub Matter Collected 527 | 260 81 186 Remotely . | . . . Salvage Created 572 | . 427 145 Parts 40 | . 34 6 Haulers Intercepted 2 | . 2 . Recyclers Shooed 1 | . 1 . Parts Field Recycled . | . . . Retrieved Matter . | . . . Parts Self-Destructed 15 | . . 15 Prevented . | . . . Kills | -11 -10 -10 ------- Run | Yrd Mat Sub Combat Hostiles Destroyed 14 | . 8 6 Guns 2 | . 2 . Cannons 5 | . 3 2 AOE 7 | . 3 4 Classes Destroyed 7 | . 6 1 Tunneler 1 | . 1 . Hauler 2 | . 2 . Operator 1 | . 1 . Watcher 1 | . 1 . Swarmer 6 | . 3 3 Grunt 5 | . 5 . Subdweller 3 | . . 3 Best Kill Streak 4 | . 3 4 Combat Bots Only 4 | . 3 4 Max Kills in Single Turn 3 | . 3 2 Gunslinging . | . . . Exploded 3 | . 3 2 Melee . | . . . Uniques/NPCs Destroyed . | . . . Combat | -11 -10 -10 -------- Run | Yrd Mat Sub Hostile Shots Fired 54 | . 24 30 Missed 11 | . 4 7 Hits 43 | . 20 23 Projectile 43 | . 20 23 Damage Taken 730 | . 343 387 Core 253 | . 121 132 Absorbed by Shields . | . . . Core Remaining (%) 100 | 100 . . Volleys Fired 39 | . 18 21 Largest 2 | . 2 2 Hottest 230 | . 112 230 Shots Fired 66 | . 31 35 Gun 24 | . 10 14 Cannon 35 | . 20 15 Launcher 7 | . 1 6 Special . | . . . Kinetic . | . . . Thermal 39 | . 10 29 Explosive 7 | . 1 6 Electromagnetic 20 | . 20 . Robot Hit Streak 19 | . 6 19 Robot Miss Streak 3 | . 2 3 Penetration Max . | . . . Secondary Targets . | . . . Shots Hit Robots 38 | . 19 19 Core Hits 22 | . 16 6 Critical Kills . | . . . Critical Parts Destroyed . | . . . Critical Strikes 4 | . 1 3 Burn 3 | . . 3 Corrupt 1 | . 1 . Melee Attacks . | . . . Impact . | . . . Slashing . | . . . Piercing . | . . . Sneak Attacks . | . . . Combat Hostiles . | . . . Follow-up Attacks . | . . . Damage Inflicted 1491 | . 834 657 Guns 197 | . 60 137 Cannons 521 | . 305 216 Explosions 773 | . 469 304 Melee . | . . . Ramming . | . . . Kinetic . | . . . Thermal 718 | . 365 353 Explosive 468 | . 164 304 Electromagnetic 305 | . 305 . Impact . | . . . Slashing . | . . . Piercing . | . . . Highest Corruption . | . . . Average Corruption . | . . . Corruption Purged . | . . . Corruption Blocked . | . . . Overload Shots 6 | . . 6 Effects 2 | . . 2 Heat Surge 2 | . . 2 Overflow Damage 64 | . 56 8 Projectiles . | . . . Explosions 64 | . 56 8 Melee . | . . . Knockbacks . | . . . Impact . | . . . Kinetic . | . . . Secondary . | . . . Self-Inflicted Damage 132 | . 132 . Shots 2 | . 2 . Rammed . | . . . Targets Rammed . | . . . Kicked . | . . . Crushed . | . . . Highest Temperature 263 | . 138 263 Average Temperature 59 | . 40 77 Received Heat Transfer 123 | . 96 27 Siege Activations . | . . . Martial Activations . | . . . Shielding Activations . | . . . Robots Disrupted . | . . . Combat Hostiles . | . . . Robots Corrupted . | . . . Combat Hostiles . | . . . Parts Fried 1 | . 1 . Impact Corruptions . | . . . Robots Melted . | . . . Combat Hostiles . | . . . Parts Melted 2 | . . 2 Heat Transferred 1163 | . 349 814 Parts Sabotaged . | . . . Parts Stolen . | . . . Parts Stripped . | . . . Power Chain Reactions 1 | . 1 . Alert | -11 -10 -10 ------- Run | Yrd Mat Sub Maximum Alert Level . | . . . Low Security (%) 100 | 100 100 . Level 1 . | . . . Level 2 . | . . . Level 3 . | . . . Level 4 . | . . . Level 5 . | . . . High Security . | . . . Max Security . | . . . Peak Influence 150 | . 150 . Initial . | . . . Average 72 | . 79 . Influence Increases 426 | . 356 70 Destroy 0b10 Robot/C 220 | . 160 60 Destroy 0b10 Robot/NC 25 | . 25 . Destroy Leader 46 | . 36 10 Successful Hack 6 | . 6 . Select Force Hacks 60 | . 60 . Disable Machine 30 | . 30 . Destroy Structure 39 | . 39 . Influence Decreases 426 | . 246 180 Entered New Map 54 | . . 54 Time Decay 352 | . 236 116 Lost Part 20 | . 10 10 Squads Dispatched 3 | . 3 . Investigation 2 | . 2 . Extermination . | . . . Reinforcement 1 | . 1 . Assault . | . . . Garrison . | . . . Intercept . | . . . Searches Triggered . | . . . Construction Impeded . | . . . Haulers Reinforced . | . . . Active Scanning Responses . | . . . Cargo Convoy Interrupts . | . . . Stealth | -11 -10 -10 --------- Run | Yrd Mat Sub Distress Signals . | . . . Communications Jammed . | . . . Distress Signals . | . . . Times Spotted 19 | . 12 7 Peak Tracking Total 5 | . 5 3 Tactical Retreats . | . . . Traps | -11 -10 -10 ------- Run | Yrd Mat Sub Traps Triggered 4 | . 4 . Indirectly . | . . . Trap Hack Attempts . | . . . Triggered . | . . . Disarmed . | . . . Reprogrammed . | . . . Reused . | . . . Traps Extracted . | . . . Installed . | . . . Triggered . | . . . Machines | -11 -10 -10 ---------- Run | Yrd Mat Sub Machines Disabled 2 | . 2 . Max in Single Turn 1 | . 1 . Machines Repaired . | . . . Machines Dismantled . | . . . Machines Sabotaged . | . . . Overloaded Fab Kills . | . . . Hacking | -11 -10 -10 --------- Run | Yrd Mat Sub Machines Accessed 6 | . 6 . Terminals 4 | . 4 . Fabricators . | . . . Repair Stations . | . . . Recycling Units 2 | . 2 . Scanalyzers . | . . . Garrison Access . | . . . Total Hacks 18 | . 18 . Successful 11 | . 11 . Failed 7 | . 7 . Catastrophic . | . . . Database Lockouts . | . . . Manual 14 | . 14 . Terminals 13 | . 13 . Fabricators . | . . . Repair Stations . | . . . Recycling Units 5 | . 5 . Scanalyzers . | . . . Garrison Access . | . . . Terminal Hacks . | . . . Fabricator Hacks . | . . . Repair Station Hacks . | . . . Recycling Unit Hacks 3 | . 3 . Report Inventory 2 | . 2 . Retrieve Components 1 | . 1 . Scanalyzer . | . . . Garrison Access Hacks . | . . . Unauthorized Hacks 8 | . 8 . Terminals 6 | . 6 . Botnet 2 | . 2 . Skim 4 | . 4 . Fabricators . | . . . Repair Stations . | . . . Recycling Units 2 | . 2 . Tunnel 2 | . 2 . Scanalyzers . | . . . Garrison Access . | . . . Data Cores Recovered 1 | . 1 . Used 1 | . 1 . Hacking Detections 4 | . 4 . Full Trace Events . | . . . Feedback Events . | . . . Feedback Blocked . | . . . Robot Schematics Acquired . | . . . Robots Built . | . . . Authchips . | . . . Time . | . . . Total Robot Build Rating . | . . . Part Schematics Acquired . | . . . Parts Built . | . . . Authchips . | . . . Time . | . . . Total Part Build Rating . | . . . Parts Repaired . | . . . Time . | . . . Parts Recycled . | . . . Recycled Matter . | . . . Retrieved Matter . | . . . Retrieved Components 10 | . 10 . Parts Scanalyzed . | . . . Part Schematics Acquired . | . . . Parts Damaged . | . . . Bothacking | -11 -10 -10 ------------ Run | Yrd Mat Sub Used RIF Installer . | . . . Robots Hacked . | . . . Non-combat . | . . . Combat . | . . . Robot Hacks Applied . | . . . Relay Couplers Released . | . . . Fabnet Peak Effective % . | . . . Robots Rewired . | . . . Allies Hacked . | . . . Hacks Repelled . | . . . Allies | -11 -10 -10 -------- Run | Yrd Mat Sub Total Allies . | . . . Largest Group . | . . . Highest-Rated Group . | . . . Highest-Rated Ally . | . . . Total Orders . | . . . Ally Attacks . | . . . Total Damage . | . . . Kills . | . . . Allies Corrupted . | . . . Allies Melted . | . . . Intel | -11 -10 -10 ------- Run | Yrd Mat Sub Active Infowar (turns) . | . . . Robot Analysis Total . | . . . Derelict Logs Recovered 1 | . . 1 Drone Launches . | . . . Drone Recoveries . | . . . Exploration | -11 -10 -10 ------------- Run | Yrd Mat Sub Turns Passed 1710 | 47 525 1138 Spaces Moved 817 | 40 319 458 Core 3 | 2 1 . Treads . | . . . Legs 133 | . . 133 Wheels 681 | 38 318 325 Hover . | . . . Flight . | . . . Fastest Speed 50 | 50 90 135 Average Speed 187 | 88 137 230 Slowest Speed 1450 | 100 1450 400 Overloaded Moves . | . . . Propulsion Burnouts . | . . . Robots Hopped . | . . . Potential Cave-ins . | . . . Cave-ins Triggered . | . . . Exploration Rate (%) 29 | 3 58 27 Regions Visited 2 Branch Regions 1 Pre-discovered Areas 3 | . 2 1 Known Exits Taken . | . . . Unknown Exits Taken 2 | 1 1 . Scrap Searched . | . . . Spaces Dug . | . . . Terrain Destroyed 92 | . 43 49 Melee . | . . . Projectile 1 | . . 1 AOE 91 | . 43 48 Terrain Rammed . | . . . Walls Destroyed . | . . . Machines Disabled . | . . . Actions | -11 -10 -10 --------- Run | Yrd Mat Sub Total 926 | 48 371 507 Wait 23 | . 8 15 Move 815 | 39 318 458 Hop . | . . . Pick Up 16 | 3 9 4 Fast Attach 17 | 6 10 1 Attach 7 | . 3 4 Detach 4 | . 3 1 Swap 3 | . 1 2 Drop 2 | . 1 1 Fire 39 | . 18 21 Melee . | . . . Ram . | . . . Kick . | . . . Crush . | . . . Escape Stasis . | . . . Rewire . | . . . Trap . | . . . Miscellaneous . | . . . Route ------- -11/Scrapyard -10/Materials (discovered 3 exits: [*Mat] / [*Min] / [*Sub]) -10/Subcaves (discovered 2 exits: [*Mat] / [*Scr]) History --------- Turn | Location | Event 24 | -11/Scrapyard | Discovered new exit (range 16) 48 | -11/Scrapyard | Entered Materials 196 | -10/Materials | Discovered new exit (range 8) 312 | -10/Materials | Build established: Mutant 553 | -10/Materials | Discovered new exit (range 12) 561 | -10/Materials | Discovered new exit (range 10) 573 | -10/Materials | Entered Subcaves 574 | -10/Subcaves | Approached by a straggling Scientist 583 | -10/Subcaves | Learned location of Zion (-6) 589 | -10/Subcaves | Shifting Twisted Machinery released Mak. Laser 597 | -10/Subcaves | Shifting Twisted Machinery released Flamer 708 | -10/Subcaves | Scientist uncovered a shortcut to Scraptown 735 | -10/Subcaves | Core integrity fell below 50% 751 | -10/Subcaves | Discovered new exit (range 15) 856 | -10/Subcaves | Shifting Twisted Machinery released Sub. Power Source 876 | -10/Subcaves | Shifting Twisted Machinery released Sub. Laser 1156 | -10/Subcaves | Core integrity fell below 20% 1255 | -10/Subcaves | Shifting Twisted Machinery released Battle Rifle 1306 | -10/Subcaves | Shifting Twisted Machinery released Sub. Laser 1710 | -10/Subcaves | Disturbed a concealed Subdweller 1711 | -10/Subcaves | Destroyed by 3N-7W3(R) with Subdweller Machine Gun Last Messages --------------- 01127_ PG-W2S(R) destroyed. 01128_ Subatomizers dissect the Sub. Optics. 01154_ 3Q-YKQ(R) suffers critical hit (Burn). 01166_ Destroyed Scrap Shield. 01169_ 3Q-YKQ(R) suffers critical hit (Burn). 01169_ Sub. Optics melted. 01169_ Sub. Monowheel melted. 01169_ 3Q-YKQ(R) destroyed. 01173_ Acquired 57 matter. 01181_ Acquired Sub. Machine Gun. 01198_ Subatomizers dissect the Sub. Optics. 01226_ Acquired 14 matter. 01237_ Subatomizers dissect the Sub. Optics. Battle Rifle falls loose from the Twisted Machinery. Sub. Laser falls loose from the Twisted Machinery. 01394_ Overload: Heat surge (+136). 01701_ Overload: Heat surge (+155). 01710_ 3N-7W3(R) angrily emerges from the Twisted Machinery. 01710_ Sub. Beam Cannon destroyed. 01711_ 3N-7W3(R): "SUBSUUUUUB!" Map ----- +----------------------------------------------------+ | ?????????????????????????????????????????????????? | | ?????????????????????????????????????????????????? | | ?????????????????????????????????????????????????? | | ?????????????????????????????????????????????????? | | ?????????????????????????????????????????????????? | | ?????????????????????????????????????????????????? | | ?????????????????????????????????????????????????? | | ?????????????????????????????????????????????????? | | ?????????????????????????????????????????????????? | | ?????????????????????????????????????????????????? | | ?????????????????????????????????????????????????? | | ?????????????????????????????????????????????????? | | ?????????????????????????????????????????????????? | | ?????????????????????????????????????????????????? | | ?????????????????????????????????????????????????? | | ?????????????????????????????????????????????????? | | ?????????????????????????????????????????????????? | | ?????????????????????????????????????????????????? | | ?????????????????????????????????????????????????? | | ?????????????????????????????????????????????????? | | ?????????????????????????????????????????????????? | | ??????????????????????##########?????????????????? | | ??????????????????# #?????????????????? | | #?????????????????# #### #?????????????????? | | ??????????????????# #<<## #?????????????????? | | ??????????????????# @$$<# #?????????????????? | | # ??????????????????# #<$R<# #?????????????????? | | ??????????????????# ##<<## #?????????????????? | | #??????????????????# #### #?????????????????? | | # ##?????###????????### ##?????????????????? | | #????## ####?????# ##?????????????????? | | ?????? ###??## #?????????????????? | | ###??? #???## #?????????????????? | | # ##?? #????##### ###?????????????????? | | # ### ## #????????# #??????????????????? | | #??# ##?????### ####???????????????? | | #????# ####### #####???????????? | | #?##### ## ## # # #???????????? | | # #### ## ##??????????? | | ## ### % ##??###????? | | ?# ### % "# ## #?## ##???? | | ?# ## % #### ##### ### ##??? | | ?# ####??## [ #?### #??? | | ?# ##??????###" ##[ ## #??? | | ?# ###?????????#" """ #### #??? | | ## & #####????####???#"""""" #??# #??? | | # ####### #???## "##### "#### ##?## #??? | | # *###### #???#"" ""#"""""## #### #??? | | # #???####" """"" " ##??? | | ### #??????#"" ##???? | +----------------------------------------------------+ Best States ------------- Heat Dissipation 35 Energy Generation 10 Energy Capacity 250 Matter Stores 300 Matter Capacity 300 Sight Range 16 Terrain Scan Density 10 Evasion (%) 42 Authchip Count 1 Item Schematics ----------------- None Robot Schematics ------------------ None Fabricated ------------ Nothing Repaired ---------- Nothing Alien Tech Used ----------------- None Achievements -------------- None Challenges ------------ None Game ------ Seed IonicCoreWarhead Manual? 0 Play Time 00:14:21 Cumulative 266.7 hours Start 2025.05.20 @ 10:20:41 End 2025.05.20 @ 10:34:34 Sessions 1 Manual Loads 0 Difficulty Rogue Special Mode None Game No. 124 Rogue 81 Adventurer 43 Explorer 0 Win Type - Total 6 Types 4/0/1/0/0/0/0/1/0/0 Lore% 75 Gallery% 69 Achievement% 64 Wizard Run 0 Options --------- Layout 0 ASCII 0 Keyboard 0 Movement Numpad Keybinds 0 Fullscreen 1 Font 24/Smallcaps Map View 76x50 Zoom Use 0% Tactical HUD 1 Map Filters NONE Filters NONE Steam 1 RUN: 786d322b-e482-4bb8-986e-0fa2f1120074